fUSD/lending_fUSD_20250506
["ID","MTS","AMOUNT","RATE_DAILY","PERIOD"]
[360079729,1746540640919,-151.00545197,0.00019803,2]
[360079731,1746540640928,-986.23410602,0.00019805,2]
[360079733,1746540640938,-150.0,0.00019813,2]
[360079735,1746540640948,-500.0,0.00019836,2]
[360079737,1746540640958,-152.88,0.00019836,2]
[360079739,1746540640967,-986.23410602,0.00019837,2]
[360079741,1746540640977,-450.0,0.00019845,2]
[360079743,1746540640986,-4567.63,0.00019845,2]
[360079745,1746540640996,-473.05,0.00019845,2]
[360079747,1746540641005,-450.0,0.00019846,2]
[360079748,1746540641014,-450.0,0.00019846,2]
[360079750,1746540641023,-1194.92,0.00019846,2]
[360079752,1746540641032,-450.0,0.00019847,2]
[360079754,1746540641042,-450.0,0.00019847,2]
[360079756,1746540641052,-168.560687,0.00019852,2]
[360079758,1746540641061,-162.96537,0.00019852,2]
[360079760,1746540641071,-574.420154,0.00019852,2]
[360079762,1746540641080,-1955.929508,0.00019852,2]
[360079764,1746540641090,-316.350055,0.00019852,2]
[360079766,1746540641099,-1782.739943,0.00019852,2]
[360079768,1746540641108,-150.0,0.00019856,2]
[360079770,1746540641119,-986.23410602,0.00019868,2]
[360079772,1746540641128,-3078.16063503,0.0001988,2]
[360079774,1746540641137,-1503.313,0.00019886,2]
[360079776,1746540641146,-2528.79784727,0.00019886,2]
[360079778,1746540641155,-152.88,0.00019887,2]
[360079779,1746540641164,-175.996,0.00019887,2]
[360079781,1746540641173,-2528.79784723,0.00019888,2]
[360079783,1746540641183,-532.29,0.00019889,2]
[360079785,1746540641195,-450.0,0.00019889,2]
[360079787,1746540641204,-450.0,0.00019889,2]
[360079789,1746540641214,-2528.79784723,0.00019889,2]
[360079791,1746540641224,-2528.79784723,0.00019891,2]
[360079793,1746540641233,-2528.79784723,0.00019892,2]
[360079795,1746540641243,-2528.79784723,0.00019894,2]
[360079797,1746540641252,-2528.79784723,0.00019895,2]
[360079799,1746540641261,-2528.79784723,0.00019897,2]
[360079801,1746540641271,-2528.79784723,0.00019898,2]
[360079803,1746540641280,-359.74,0.00019899,2]
[360079805,1746540641290,-2418.287589,0.000199,2]
[360079807,1746540641298,-986.23410602,0.000199,2]
[360079809,1746540641308,-2528.79784723,0.000199,2]
[360079811,1746540641317,-377.1400588,0.000199,2]
[360079813,1746540641326,-420.44620447,0.000199,3]
[360079815,1746540641335,-150.0,0.00019901,2]
[360079817,1746540641345,-152.62936002,0.00019903,2]
[360079819,1746540641354,-150.0,0.00019904,2]
[360079820,1746540641363,-1301.0,0.00019917,2]
[360079822,1746540641372,-722.003,0.00019917,2]
[360079824,1746540641382,-150.0,0.00019938,2]
[360079826,1746540641391,-1242.0,0.0001994,2]
[360079828,1746540641400,-5933.0,0.0001994,2]
[360079830,1746540641409,-150.0,0.00019947,2]
[360079832,1746540641418,-6764.0,0.00019949,2]
[360079834,1746540641427,-4015.0,0.00019949,2]
[360079836,1746540641437,-300.55,0.00019949,2]
[360079838,1746540641446,-275.675,0.00019949,2]
[360079840,1746540641455,-879.0,0.00019949,2]
[360079842,1746540641464,-878.0,0.00019949,2]
[360079844,1746540641474,-152.88,0.00019962,2]
[360079846,1746540641483,-574.420154,0.00019972,2]
[360079848,1746540641493,-1955.929508,0.00019972,2]
[360079850,1746540641502,-500.0,0.00019972,2]
[360079852,1746540641511,-316.350055,0.00019972,2]
[360079854,1746540641520,-1782.739943,0.00019972,2]
[360079856,1746540641528,-500.91993054,0.00019973,2]
[360079858,1746540641538,-500.0,0.00019973,2]
[360079860,1746540641548,-500.0,0.00019973,2]
[360079862,1746540641556,-500.0,0.00019973,2]
[360079864,1746540641566,-152.88,0.00019976,2]
[360079865,1746540641575,-150.0,0.00019984,2]
[360079868,1746540641586,-1203.5144936,0.00019986,2]
[360079869,1746540641595,-28617.2389353,0.00019986,2]
[360079871,1746540641604,-1406.9334048,0.00019986,2]
[360079873,1746540641613,-214.9393375,0.00019986,2]
[360079875,1746540641622,-367.86138687,0.0001999,2]
[360079877,1746540641632,-367.86138687,0.0001999,2]
[360079879,1746540641641,-367.86138687,0.0001999,2]
[360079881,1746540641650,-150.0,0.00019994,2]
[360079883,1746540641659,-500.0,0.00019997,2]
[360079885,1746540641668,-296.2535727,0.00019997,2]
[360079887,1746540641677,-253.434,0.00019997,2]
[360079889,1746540641686,-214.652,0.00019997,2]
[360079891,1746540641696,-182.758,0.00019997,2]
[360079893,1746540641705,-260.1,0.00019997,2]
[360079895,1746540641714,-203.026,0.00019997,2]
[360079897,1746540641723,-926.0,0.00019997,2]
[360079899,1746540641733,-574.420154,0.00019998,2]
[360079901,1746540641742,-1955.929508,0.00019998,2]
[360079903,1746540641751,-450.0,0.00019998,2]
[360079905,1746540641761,-450.0,0.00019998,2]
[360079907,1746540641771,-316.350055,0.00019998,2]
[360079909,1746540641781,-554.37006051,0.00019998,2]
[360079911,1746540641793,-450.0,0.00019998,2]
[360079913,1746540641803,-450.0,0.00019998,2]
[360079914,1746540641813,-159.91,0.00019998,2]
[360079916,1746540641822,-450.0,0.00019998,2]
[360079918,1746540641833,-486.31,0.00019998,2]
[360079921,1746540641843,-413.26059959,0.00019998,2]
[360079923,1746540641853,-317.36,0.00019998,2]
[360079924,1746540641862,-450.0,0.00019998,2]
[360079926,1746540641872,-503.00257842,0.00019998,2]
[360079928,1746540641882,-450.0,0.00019998,2]
[360079930,1746540641893,-450.0,0.00019998,2]
[360079932,1746540641903,-450.0,0.00019998,2]
[360079934,1746540641912,-176.98,0.00019998,2]
[360079936,1746540641923,-450.0,0.00019998,2]
[360079938,1746540641933,-450.0,0.00019998,2]
[360079940,1746540641942,-216.04,0.00019998,2]
[360079942,1746540641952,-450.0,0.00019998,2]
[360079944,1746540641962,-450.0,0.00019998,2]
[360079946,1746540641972,-506.3,0.00019998,2]
[360079948,1746540641981,-572.32101459,0.00019998,2]
[360079950,1746540641991,-450.0,0.00019998,2]
[360079952,1746540642000,-462.52,0.00019998,2]
[360079954,1746540642009,-450.0,0.00019998,2]
[360079956,1746540642018,-459.68,0.00019998,2]
[360079958,1746540642027,-610.33,0.00019998,2]
[360079960,1746540642037,-610.33,0.00019998,2]
[360079962,1746540642047,-610.33,0.00019998,2]
[360079964,1746540642056,-450.0,0.00019998,2]
[360079966,1746540642065,-174.44937582,0.00019998,2]
[360079968,1746540642075,-1782.739943,0.00019998,2]
[360079970,1746540642085,-515.84,0.00019998,2]
[360079972,1746540642095,-515.84,0.00019998,2]
[360079974,1746540642104,-687.98,0.00019998,2]
[360079976,1746540642114,-687.98,0.00019998,2]
[360079978,1746540642123,-687.98,0.00019998,2]
[360079980,1746540642134,-498.42,0.00019998,2]
[360079982,1746540642143,-498.42,0.00019998,2]
[360079984,1746540642152,-4567.63,0.00019998,2]
[360079985,1746540642162,-4567.63,0.00019998,2]
[360079988,1746540642171,-450.0,0.00019998,2]
[360079990,1746540642181,-450.0,0.00019998,2]
[360079991,1746540642191,-450.0,0.00019998,2]
[360079994,1746540642203,-450.0,0.00019998,2]
[360079996,1746540642212,-500.0,0.00019998,2]
[360079997,1746540642222,-500.0,0.00019998,2]
[360079999,1746540642232,-6474.97,0.00019998,2]
[360080015,1746540642377,-6474.97,0.00019998,2]
[360080017,1746540642386,-450.0,0.00019998,2]
[360080019,1746540642396,-450.0,0.00019998,2]
[360080021,1746540642406,-450.0,0.00019998,2]
[360080024,1746540642415,-473.05,0.00019998,2]
[360080026,1746540642425,-450.0,0.00019998,2]
[360080028,1746540642434,-473.05,0.00019998,2]
[360080031,1746540642444,-450.0,0.00019998,2]
[360080033,1746540642453,-450.0,0.00019998,2]
[360080035,1746540642462,-16443.67,0.00019998,2]
[360080037,1746540642471,-16443.67,0.00019998,2]
[360080039,1746540642480,-450.0,0.00019998,2]
[360080042,1746540642489,-450.0,0.00019998,2]
[360080044,1746540642500,-450.0,0.00019998,2]
[360080047,1746540642510,-450.0,0.00019998,2]
[360080049,1746540642519,-450.0,0.00019998,2]
[360080052,1746540642528,-420.13067903,0.00019998,2]
[360080055,1746540642538,-1410.72,0.00019998,2]
[360080058,1746540642547,-1410.72,0.00019998,2]
[360080060,1746540642557,-500.0,0.00019999,2]
[360080062,1746540642567,-573.57399679,0.00019999,2]
[360080064,1746540642576,-500.0,0.00019999,2]
[360080066,1746540642586,-500.0,0.00019999,2]
[360080068,1746540642596,-450.0,0.00019999,2]
[360080070,1746540642606,-450.0,0.00019999,2]
[360080072,1746540642615,-450.0,0.00019999,2]
[360080074,1746540642624,-562.23,0.00019999,2]
[360080076,1746540642634,-151.78,0.00019999,2]
[360080078,1746540642643,-1194.92,0.00019999,2]
[360080080,1746540642653,-1194.92,0.00019999,2]
[360080082,1746540642664,-1194.92,0.00019999,2]
[360080084,1746540642674,-1194.92,0.00019999,2]
[360080086,1746540642686,-1194.92,0.00019999,2]
[360080088,1746540642701,-1194.92,0.00019999,2]
[360080089,1746540642710,-1194.92,0.00019999,2]
[360080092,1746540642720,-1194.92,0.00019999,2]
[360080093,1746540642730,-1194.92,0.00019999,2]
[360080096,1746540642739,-1194.92,0.00019999,2]
[360080097,1746540642749,-1194.92,0.00019999,2]
[360080100,1746540642758,-1194.92,0.00019999,2]
[360080101,1746540642767,-1194.92,0.00019999,2]
[360080104,1746540642777,-1194.92,0.00019999,2]
[360080106,1746540642786,-1194.92,0.00019999,2]
[360080108,1746540642795,-1194.92,0.00019999,2]
[360080109,1746540642805,-1194.92,0.00019999,2]
[360080111,1746540642814,-1194.92,0.00019999,2]
[360080114,1746540642823,-1194.92,0.00019999,2]
[360080115,1746540642832,-1194.92,0.00019999,2]
[360080117,1746540642842,-1194.92,0.00019999,2]
[360080119,1746540642851,-1194.92,0.00019999,2]
[360080121,1746540642860,-1194.95519756,0.00019999,2]
[360080123,1746540642870,-450.0,0.00019999,2]
[360080125,1746540642879,-561.72,0.00019999,2]
[360080127,1746540642889,-221.14,0.00019999,2]
[360080129,1746540642898,-450.0,0.00019999,2]
[360080131,1746540642907,-450.0,0.00019999,2]
[360080133,1746540642917,-450.0,0.00019999,2]
[360080135,1746540642926,-450.0,0.00019999,2]
[360080137,1746540642936,-450.0,0.00019999,2]
[360080139,1746540642946,-450.0,0.00019999,2]
[360080141,1746540642955,-450.0,0.00019999,2]
[360080144,1746540642965,-450.0,0.00019999,2]
[360080146,1746540642974,-450.0,0.00019999,2]
[360080147,1746540642984,-450.0,0.00019999,2]
[360080150,1746540642994,-450.0,0.00019999,2]
[360080152,1746540643006,-450.0,0.00019999,2]
[360080154,1746540643015,-450.0,0.00019999,2]
[360080156,1746540643024,-442.43377743,0.00019999,2]
[360080158,1746540643034,-450.0,0.00019999,2]
[360080160,1746540643044,-450.0,0.00019999,2]
[360080162,1746540643053,-450.0,0.00019999,2]
[360080164,1746540643062,-450.0,0.00019999,2]
[360080165,1746540643071,-450.0,0.00019999,2]
[360080166,1746540643080,-450.0,0.00019999,2]
[360080167,1746540643090,-450.0,0.00019999,2]
[360080168,1746540643098,-450.0,0.00019999,2]
[360080169,1746540643107,-450.0,0.00019999,2]
[360080170,1746540643116,-450.0,0.00019999,2]
[360080172,1746540643126,-450.0,0.00019999,2]
[360080174,1746540643135,-450.0,0.00019999,2]
[360080176,1746540643144,-450.0,0.00019999,2]
[360080178,1746540643154,-450.0,0.00019999,2]
[360080179,1746540643163,-450.0,0.00019999,2]
[360080181,1746540643175,-450.0,0.00019999,2]
[360080182,1746540643192,-450.0,0.00019999,2]
[360080183,1746540643203,-450.0,0.00019999,2]
[360080184,1746540643212,-565.89,0.00019999,2]
[360080186,1746540643222,-610.33,0.00019999,2]
[360080188,1746540643231,-610.33,0.00019999,2]
[360080190,1746540643244,-610.33,0.00019999,2]
[360080192,1746540643255,-610.33,0.00019999,2]
[360080194,1746540643265,-610.33,0.00019999,2]
[360080196,1746540643278,-610.33,0.00019999,2]
[360080198,1746540643289,-610.33,0.00019999,2]
[360080200,1746540643299,-610.33,0.00019999,2]
[360080202,1746540643308,-610.33,0.00019999,2]
[360080204,1746540643317,-610.33,0.00019999,2]
[360080206,1746540643328,-610.33,0.00019999,2]
[360080208,1746540643337,-610.33,0.00019999,2]
[360080210,1746540643346,-610.33,0.00019999,2]
[360080211,1746540643356,-610.33,0.00019999,2]
[360080213,1746540643366,-610.33,0.00019999,2]
[360080216,1746540643376,-610.33,0.00019999,2]
[360080217,1746540643385,-610.33,0.00019999,2]
[360080220,1746540643395,-610.33,0.00019999,2]
[360080221,1746540643404,-610.33,0.00019999,2]
[360080223,1746540643414,-610.48475267,0.00019999,2]
[360080225,1746540643424,-515.84,0.00019999,2]
[360080227,1746540643433,-515.84,0.00019999,2]
[360080229,1746540643443,-515.84,0.00019999,2]
[360080231,1746540643452,-515.84,0.00019999,2]
[360080233,1746540643462,-515.84,0.00019999,2]
[360080235,1746540643472,-515.84,0.00019999,2]
[360080237,1746540643481,-515.84,0.00019999,2]
[360080239,1746540643491,-515.84,0.00019999,2]
[360080241,1746540643500,-515.84,0.00019999,2]
[360080243,1746540643509,-515.84,0.00019999,2]
[360080245,1746540643518,-515.84,0.00019999,2]
[360080247,1746540643528,-515.84,0.00019999,2]
[360080249,1746540643539,-515.84,0.00019999,2]
[360080251,1746540643548,-515.84,0.00019999,2]
[360080253,1746540643558,-515.84,0.00019999,2]
[360080255,1746540643567,-515.84,0.00019999,2]
[360080257,1746540643577,-515.84,0.00019999,2]
[360080259,1746540643587,-515.84,0.00019999,2]
[360080261,1746540643596,-515.84,0.00019999,2]
[360080263,1746540643606,-515.84,0.00019999,2]
[360080265,1746540643617,-516.06,0.00019999,2]
[360080267,1746540643627,-687.98,0.00019999,2]
[360080269,1746540643636,-687.98,0.00019999,2]
[360080271,1746540643645,-687.98,0.00019999,2]
[360080273,1746540643655,-687.98,0.00019999,2]
[360080275,1746540643665,-687.98,0.00019999,2]
[360080277,1746540643674,-687.98,0.00019999,2]
[360080279,1746540643684,-687.98,0.00019999,2]
[360080281,1746540643693,-687.98,0.00019999,2]
[360080283,1746540643703,-687.98,0.00019999,2]
[360080285,1746540643712,-687.98,0.00019999,2]
[360080287,1746540643721,-687.98,0.00019999,2]
[360080289,1746540643731,-687.98,0.00019999,2]
[360080291,1746540643741,-687.98,0.00019999,2]
[360080293,1746540643750,-687.98,0.00019999,2]
[360080295,1746540643759,-687.98,0.00019999,2]
[360080297,1746540643769,-687.98,0.00019999,2]
[360080299,1746540643778,-687.98,0.00019999,2]
[360080301,1746540643789,-687.98,0.00019999,2]
[360080303,1746540643798,-687.98,0.00019999,2]
[360080305,1746540643807,-688.16000001,0.00019999,2]
[360080307,1746540643817,-498.42,0.00019999,2]
[360080309,1746540643826,-498.42,0.00019999,2]
[360080311,1746540643835,-498.42,0.00019999,2]
[360080313,1746540643845,-498.42,0.00019999,2]
[360080315,1746540643855,-498.42,0.00019999,2]
[360080317,1746540643864,-4567.63,0.00019999,2]
[360080319,1746540643874,-498.42,0.00019999,2]
[360080321,1746540643883,-4567.63,0.00019999,2]
[360080323,1746540643892,-498.42,0.00019999,2]
[360080325,1746540643902,-4567.63,0.00019999,2]
[360080327,1746540643911,-498.42,0.00019999,2]
[360080329,1746540643921,-498.42,0.00019999,2]
[360080331,1746540643930,-4567.63,0.00019999,2]
[360080333,1746540643940,-498.42,0.00019999,2]
[360080335,1746540643950,-498.42,0.00019999,2]
[360080337,1746540643959,-498.42,0.00019999,2]
[360080339,1746540643969,-498.42,0.00019999,2]
[360080341,1746540643979,-4567.63,0.00019999,2]
[360080343,1746540643988,-498.42,0.00019999,2]
[360080345,1746540643998,-4567.63,0.00019999,2]
[360080347,1746540644007,-498.42,0.00019999,2]
[360080349,1746540644017,-4567.63,0.00019999,2]
[360080351,1746540644026,-498.42,0.00019999,2]
[360080353,1746540644037,-4567.63,0.00019999,2]
[360080355,1746540644046,-498.42,0.00019999,2]
[360080357,1746540644055,-4567.63,0.00019999,2]
[360080359,1746540644064,-498.42,0.00019999,2]
[360080360,1746540644074,-4567.63,0.00019999,2]
[360080362,1746540644083,-498.42,0.00019999,2]
[360080365,1746540644093,-4567.63,0.00019999,2]
[360080367,1746540644103,-498.42,0.00019999,2]
[360080368,1746540644112,-4567.63,0.00019999,2]
[360080370,1746540644121,-498.56439464,0.00019999,2]
[360080372,1746540644131,-4567.63,0.00019999,2]
[360080374,1746540644141,-4567.63,0.00019999,2]
[360080376,1746540644151,-4567.63,0.00019999,2]
[360080378,1746540644160,-4567.63,0.00019999,2]
[360080380,1746540644169,-4567.63,0.00019999,2]
[360080382,1746540644178,-4567.63,0.00019999,2]
[360080384,1746540644188,-4567.63,0.00019999,2]
[360080386,1746540644200,-4567.63,0.00019999,2]
[360080388,1746540644209,-4567.76016853,0.00019999,2]
[360080390,1746540644218,-450.0,0.00019999,2]
[360080392,1746540644227,-450.0,0.00019999,2]
[360080394,1746540644238,-450.0,0.00019999,2]
[360080396,1746540644247,-450.0,0.00019999,2]
[360080398,1746540644257,-450.0,0.00019999,2]
[360080400,1746540644266,-450.0,0.00019999,2]
[360080402,1746540644277,-229.76,0.00019999,2]
[360080404,1746540644287,-450.0,0.00019999,2]
[360080406,1746540644296,-450.0,0.00019999,2]
[360080408,1746540644305,-378.51,0.00019999,2]
[360080410,1746540644315,-450.0,0.00019999,2]
[360080412,1746540644324,-450.0,0.00019999,2]
[360080414,1746540644334,-450.0,0.00019999,2]
[360080416,1746540644343,-450.0,0.00019999,2]
[360080418,1746540644352,-450.0,0.00019999,2]
[360080420,1746540644361,-450.0,0.00019999,2]
[360080422,1746540644371,-500.0,0.00019999,2]
[360080424,1746540644380,-450.0,0.00019999,2]
[360080426,1746540644390,-500.0,0.00019999,2]
[360080428,1746540644399,-492.17,0.00019999,2]
[360080430,1746540644408,-500.0,0.00019999,2]
[360080432,1746540644417,-500.0,0.00019999,2]
[360080434,1746540644427,-500.0,0.00019999,2]
[360080436,1746540644436,-500.0,0.00019999,2]
[360080438,1746540644445,-500.0,0.00019999,2]
[360080440,1746540644455,-500.0,0.00019999,2]
[360080442,1746540644464,-500.0,0.00019999,2]
[360080444,1746540644473,-500.0,0.00019999,2]
[360080446,1746540644483,-500.0,0.00019999,2]
[360080448,1746540644493,-500.0,0.00019999,2]
[360080450,1746540644503,-6474.97,0.00019999,2]
[360080452,1746540644512,-500.0,0.00019999,2]
[360080454,1746540644521,-6474.97,0.00019999,2]
[360080456,1746540644530,-588.36303363,0.00019999,2]
[360080458,1746540644541,-6474.97,0.00019999,2]
[360080460,1746540644551,-6474.97,0.00019999,2]
[360080462,1746540644561,-6474.97,0.00019999,2]
[360080464,1746540644570,-6474.97,0.00019999,2]
[360080467,1746540644580,-6474.97,0.00019999,2]
[360080469,1746540644588,-6474.97,0.00019999,2]
[360080471,1746540644598,-6474.97,0.00019999,2]
[360080472,1746540644607,-6474.97,0.00019999,2]
[360080475,1746540644617,-6474.97,0.00019999,2]
[360080476,1746540644626,-6474.97,0.00019999,2]
[360080478,1746540644635,-6474.97,0.00019999,2]
[360080480,1746540644644,-6474.97,0.00019999,2]
[360080482,1746540644653,-6474.97,0.00019999,2]
[360080484,1746540644662,-6474.97,0.00019999,2]
[360080487,1746540644672,-6474.97,0.00019999,2]
[360080489,1746540644681,-6474.97,0.00019999,2]
[360080491,1746540644690,-6474.97,0.00019999,2]
[360080493,1746540644699,-6474.97,0.00019999,2]
[360080494,1746540644708,-473.05,0.00019999,2]
[360080497,1746540644718,-6474.99748347,0.00019999,2]
[360080499,1746540644727,-473.05,0.00019999,2]
[360080500,1746540644736,-450.0,0.00019999,2]
[360080503,1746540644746,-473.05,0.00019999,2]
[360080504,1746540644755,-406.04,0.00019999,2]
[360080507,1746540644764,-473.05,0.00019999,2]
[360080509,1746540644773,-473.05,0.00019999,2]
[360080511,1746540644783,-473.05,0.00019999,2]
[360080513,1746540644796,-473.05,0.00019999,2]
[360080515,1746540644805,-473.05,0.00019999,2]
[360080517,1746540644814,-473.05,0.00019999,2]
[360080519,1746540644824,-473.05,0.00019999,2]
[360080521,1746540644833,-473.05,0.00019999,2]
[360080523,1746540644842,-473.05,0.00019999,2]
[360080525,1746540644851,-473.05,0.00019999,2]
[360080527,1746540644861,-473.05,0.00019999,2]
[360080529,1746540644871,-473.05,0.00019999,2]
[360080531,1746540644880,-473.05,0.00019999,2]
[360080533,1746540644890,-473.05,0.00019999,2]
[360080535,1746540644899,-473.05,0.00019999,2]
[360080537,1746540644908,-473.05,0.00019999,2]
[360080539,1746540644917,-473.05,0.00019999,2]
[360080541,1746540644926,-473.23,0.00019999,2]
[360080542,1746540644936,-16443.67,0.00019999,2]
[360080545,1746540644945,-16443.67,0.00019999,2]
[360080547,1746540644955,-16443.67,0.00019999,2]
[360080548,1746540644964,-16443.67,0.00019999,2]
[360080550,1746540644974,-16443.67,0.00019999,2]
[360080552,1746540644983,-16443.67,0.00019999,2]
[360080555,1746540644993,-16443.67,0.00019999,2]
[360080556,1746540645002,-16443.67,0.00019999,2]
[360080558,1746540645011,-16443.67,0.00019999,2]
[360080561,1746540645021,-16443.67,0.00019999,2]
[360080562,1746540645031,-16443.67,0.00019999,2]
[360080565,1746540645042,-16443.67,0.00019999,2]
[360080567,1746540645052,-16443.67,0.00019999,2]
[360080568,1746540645061,-16443.67,0.00019999,2]
[360080570,1746540645071,-16443.67,0.00019999,2]
[360080572,1746540645080,-16443.67,0.00019999,2]
[360080575,1746540645089,-16443.67,0.00019999,2]
[360080576,1746540645099,-450.0,0.00019999,2]
[360080578,1746540645108,-16443.67,0.00019999,2]
[360080580,1746540645119,-450.0,0.00019999,2]
[360080583,1746540645128,-16443.67,0.00019999,2]
[360080584,1746540645138,-450.0,0.00019999,2]
[360080586,1746540645147,-16443.67,0.00019999,2]
[360080588,1746540645156,-450.0,0.00019999,2]
[360080591,1746540645166,-16443.90911092,0.00019999,2]
[360080593,1746540645175,-450.0,0.00019999,2]
[360080594,1746540645185,-450.0,0.00019999,2]
[360080596,1746540645198,-450.0,0.00019999,2]
[360080599,1746540645208,-450.0,0.00019999,2]
[360080601,1746540645218,-450.0,0.00019999,2]
[360080603,1746540645227,-450.0,0.00019999,2]
[360080605,1746540645236,-450.0,0.00019999,2]
[360080606,1746540645246,-450.0,0.00019999,2]
[360080608,1746540645255,-450.0,0.00019999,2]
[360080610,1746540645265,-450.0,0.00019999,2]
[360080613,1746540645275,-450.0,0.00019999,2]
[360080615,1746540645285,-450.0,0.00019999,2]
[360080617,1746540645294,-450.0,0.00019999,2]
[360080619,1746540645304,-375.96,0.00019999,2]
[360080621,1746540645314,-450.0,0.00019999,2]
[360080622,1746540645323,-450.0,0.00019999,2]
[360080624,1746540645332,-397.80578746,0.00019999,2]
[360080626,1746540645342,-1410.72,0.00019999,2]
[360080628,1746540645352,-1410.72,0.00019999,2]
[360080630,1746540645362,-1410.72,0.00019999,2]
[360080632,1746540645372,-1410.72,0.00019999,2]
[360080634,1746540645382,-500.0,0.00019999,2]
[360080636,1746540645392,-884.0,0.00019999,2]
[360080639,1746540645402,-335518.2555049,0.0002,2]
[360080700,1746540645734,-63477.43062027,0.0002,2]
[360080704,1746540645752,-937.53,0.00019999,2]
[360080720,1746540645853,-292.93025625,0.00019793,2]
[360080722,1746540645865,-248.88974375,0.00019793,2]
[360080724,1746540645874,-473.19,0.00019999,2]
[360080726,1746540645884,-1009.11995625,0.00019999,2]
[360080728,1746540645896,-401.60004375,0.00019999,2]
[360080729,1746540645907,-1410.72,0.00019999,2]
[360080730,1746540645916,-1410.72,0.00019999,2]
[360080731,1746540645925,-1410.72,0.00019999,2]
[360080732,1746540645934,-1410.72,0.00019999,2]
[360080733,1746540645944,-1410.72,0.00019999,2]
[360080734,1746540645954,-1410.72,0.00019999,2]
[360080735,1746540645964,-1410.72,0.00019999,2]
[360080736,1746540645974,-1410.72,0.00019999,2]
[360080737,1746540645983,-831.20082413,0.00019999,2]
[360080738,1746540645996,-579.51917587,0.00019999,2]
[360080739,1746540646006,-63.82082413,0.0002,2]
[360080745,1746540646090,-500.0,0.00019607,2]
[360080747,1746540646099,-450.0,0.00019772,2]
[360080749,1746540646109,-450.0,0.00019773,2]
[360080751,1746540646119,-563.01,0.00019793,2]
[360080753,1746540646128,-161.46725979,0.00019898,2]
[360080755,1746540646138,-450.0,0.00019998,2]
[360080758,1746540646148,-1410.72,0.00019999,2]
[360080760,1746540646158,-1410.72,0.00019999,2]
[360080762,1746540646167,-1410.72,0.00019999,2]
[360080764,1746540646177,-1410.72,0.00019999,2]
[360080766,1746540646186,-1410.72,0.00019999,2]
[360080768,1746540646200,-1410.95,0.00019999,2]
[360080770,1746540646210,-133964.71585851,0.0002,2]
[360080772,1746540646221,-918.24616318,0.0002,2]
[360080774,1746540646233,-14083.35,0.0002,2]
[360080776,1746540646245,-939.0,0.0002,2]
[360081120,1746540669561,1405.06,0.00019071,2]
[360081121,1746540709104,571.29,0.00018695,2]
[360081122,1746540751679,190.08,0.00018845,2]
[360081123,1746540764557,250.0,0.00018695,2]
[360081124,1746540776792,350.71,0.00018974,2]
[360081125,1746540784228,1078.11,0.00018974,2]
[360081126,1746540785675,1000.0,0.00018974,2]
[360081127,1746540811451,250.0,0.00017,2]
[360081128,1746540812556,300.0,0.00019,2]
[360081129,1746540833986,197.15,0.00018695,2]
[360081130,1746540860928,163.92,0.00019256,2]
[360081131,1746540922038,248174.52,0.00019178,10]